[Event "French-ch Youth U18 2022"]
[Site "Agen"]
[Date "2022.04.21"]
[Round "6.2"]
[White "Harutyunyan, Safar"]
[Black "Mathieu, Phileas"]
[Result "1-0"]
[ECO "B07"]
[WhiteElo "2217"]
[BlackElo "2323"]
[Annotator "TA"]
[PlyCount "57"]
[EventDate "2022.04.17"]
[EventType "swiss"]
[EventCountry "FRA"]
[SourceTitle "playchess.com"]
[Source "ChessBase"]
[SourceQuality "1"]
[TimeControl "5400+30"]

{[%evp 9,56,45,51,54,48,14,22,27,18,6,14,16,45,50,54,24,-5,-20,24,20,41,41,110,127,176,181,174,179,169,182,290,284,271,294,381,400,381,370,441,436,540,364,568,558,1075,1053,29990,29991,29999]} 1. e4 {[%emt 0:00:03]} d6 {[%emt 0:00:40]} 2. d4 {[%emt 0:00:18]} Nf6 {[%emt 0:00:11]} 3. Nc3 {[%emt 0:00:05]} g6 {[%emt 0:00:04]} 4. Be3 {[%emt 0:00:12]} c6 {[%emt 0:00:24]} 5. h3 {[%emt 0:00:21]} b5 {[%emt 0:02:29]} 6. a3 {[%emt 0:00:29] B07: Pirc Defence: Miscellaneous Systems.} Bg7 {[%emt 0:03:10]} 7. Nf3 {[%emt 0:20:02]} O-O {[%emt 0:00:40]} 8. Be2 {[%emt 0:00:37][%cal Bf1e2,Be2g4,Bg4e6][%mdl 32] The position is equal.} Nbd7 {[%emt 0:01:38]} 9. Qd2 {[%emt 0:15:21]} Bb7 {[%emt 0:01:45]} 10. e5 {[%emt 0:08:03]} Ne8 {[%emt 0:13:05][%cal Rd6e5] [#]} 11. e6 $146 {[%emt 0:13:07]} ({Predecessor:} 11. O-O-O Nc7 12. Bh6 a5 13. h4 b4 14. Nb1 dxe5 15. h5 exd4 16. Bxg7 Kxg7 17. hxg6 {0-1 (17) Plutarco,F (800)-Caviglia,M (1129) LSS email 2014}) 11... fxe6 {[%emt 0:01:47]} 12. Ng5 {[%emt 0:00:00]} (12. h4 $5 {[%cal Rh4h5]}) 12... Nc7 {[%emt 0:03:05]} 13. Bg4 {[%emt 0:00:16]} e5 {[%emt 0:06:06]} 14. Be6+ {[%emt 0:00:33]} Kh8 {[%emt 0:00:07]} 15. h4 {[%emt 0:01:55][%cal Bh3h4,Bh4h5,Bh5g6][%mdl 32]} (15. Nf7+ Rxf7 16. Bxf7 exd4 17. Bxd4 d5 18. Bxg7+ Kxg7 19. Bxg6 (19. Qf4 $2 e5 $19) 19... hxg6 $17) 15... exd4 {[%emt 0:25:59]} ({Black should play} 15... Bf6 $1 $14 16. Bxd7 (16. Nf7+ Rxf7 17. Bxf7 exd4 $11) 16... exd4 17. Bxd4 e5) 16. Bxd4 $16 {[%emt 0:00:45]} Bxd4 {[%emt 0:09:05]} (16... Nf6 $16 {is a better defense.}) 17. Qxd4+ $18 {[%emt 0:00:20]} Nf6 {[%emt 0:00:01]} 18. h5 $1 $36 {[%emt 0:06:24][%mdl 2048] White wants to mate with hxg6. Black is under strong pressure.} ({Inferior is} 18. Nf7+ Rxf7 $1 19. Bxf7 Qf8 $17) 18... c5 {[%emt 0:08:37]} 19. Qd3 {[%emt 0:01:24]} c4 {[%emt 0:07:10] [#]} (19... gxh5 $2 20. Rxh5 $3 {[%mdl 512]} Rf7 21. Nxf7+ $18) (19... Bxg2 {was called for.} 20. Rh2 Nxe6 21. Nxe6 Qd7 22. Nxf8 Qg4) 20. Qd4 $1 {[%emt 0:02:39] aiming for hxg6.} Nxe6 {[%emt 0:01:57]} 21. Nxe6 {[%emt 0:00:06] Strongly threatening hxg6.} Qd7 {[%emt 0:00:02]} 22. Nxf8 {[%emt 0:00:15]} Rxf8 {[%emt 0:00:05]} 23. hxg6 {[%emt 0:04:20] Black must now prevent Rxh7+.} e5 {[%emt 0:00:51]} 24. Qh4 {[%emt 0:01:17]} ({Don't play} 24. Qxa7 Ra8 25. Qe3 Qg4 26. Nxb5 Bxg2 $18) 24... d5 {[%emt 0:06:32]} 25. Qh6 {[%emt 0:04:12]} Qe7 {[%emt 0:00:23]} (25... Qg7 {might work better.} 26. Qxg7+ (26. Nxb5 Qxh6 27. Rxh6 Kg7 $16) 26... Kxg7 27. gxh7 (27. Nxb5 hxg6 28. Nxa7 d4 $18) 27... a6) 26. Nxb5 {[%emt 0:03:31][%cal Bc3b5,Bb5d6,Bd6f5][%mdl 32]} Rg8 {[%emt 0:06:45] [#]} 27. Nd6 $1 {[%emt 0:01:29][%mdl 512] White threatens Nf7+ and mate.} Rb8 {[%emt 0:00:48]} (27... Rg7 28. Nf5) 28. Nf5 {[%emt 0:01:58]} Qe6 {[%emt 0:00:10]} 29. Qg7# {[%emt 0:00:02] Weighted Error Value: White=0.11 (very precise) /Black=0.66} 1-0

[Event "French-ch Youth U18 2022"]
[Site "Agen"]
[Date "2022.04.21"]
[Round "6.3"]
[White "Emmenecker, Pierre-Antoine"]
[Black "Maugenest, Ghislain"]
[Result "1-0"]
[ECO "C45"]
[WhiteElo "2119"]
[BlackElo "2256"]
[Annotator "TA"]
[PlyCount "124"]
[EventDate "2022.04.17"]
[EventType "swiss"]
[EventCountry "FRA"]
[SourceTitle "playchess.com"]
[Source "ChessBase"]
[SourceQuality "1"]
[TimeControl "5400+30"]

{[%evp 14,124,-4,0,5,-2,0,-28,0,0,0,0,26,0,0,-5,32,4,6,5,12,21,6,0,0,0,18,0,0,5,8,11,26,24,34,36,69,70,104,102,114,81,116,132,158,133,162,144,190,102,283,208,314,313,547,508,506,526,472,458,443,427,588,551,625,620,560,518,490,445,461,455,462,464,467,450,447,375,377,349,504,493,455,448,1061,1061,1061,1061,1210,997,1822,2762,2350,2111,1780,1662,1497,1237,29980,29980,29981,29982,29982,29983,29983,29984,29984,29982,29982,29983,29989,29990,29990]} 1. e4 {[%emt 0:00:01][%cal Be2e4,Be4e5][%mdl 32]} e5 {[%emt 0:00:17]} 2. Nf3 {[%emt 0:00:05]} Nc6 {[%emt 0:00:17]} 3. d4 {[%emt 0:00:04]} exd4 {[%emt 0:00:17]} 4. Nxd4 {[%emt 0:00:08]} Nf6 {[%emt 0:00:27]} 5. Nxc6 {[%emt 0:00:05]} bxc6 {[%emt 0:00:07]} 6. e5 {[%emt 0:00:12]} Qe7 {[%emt 0:00:24]} 7. Qe2 {[%emt 0:00:12]} Nd5 {[%emt 0:00:05]} 8. h4 {[%emt 0:00:13]} f6 {[%emt 0:01:32] C45: Scotch Game.} 9. c4 {[%emt 0:05:09]} Ba6 {[%emt 0:03:21]} 10. Rh3 {[%emt 0:10:16]} (10. exf6 Nxf6 11. Nc3) 10... fxe5 {[%emt 0:09:34] Black has an edge.} 11. Bg5 $1 {[%emt 0:04:19]} Nf6 {[%emt 0:02:46]} 12. Re3 {[%emt 0:07:47]} O-O-O {[%emt 0:02:33]} 13. Ra3 {[%emt 0:14:06]} Bb7 {[%emt 0:04:16]} 14. Rxa7 {[%emt 0:00:47]} Qb4+ {[%emt 0:08:05]} 15. Nc3 {[%emt 0:06:50] [#]} d5 $146 {[%emt 0:08:23] And now ...d4 would win.} ({Predecessor:} 15... Qb6 16. Be3 Bc5 17. Bxc5 Qxc5 18. Ra4 Rhe8 19. O-O-O d5 20. g3 d4 21. Ne4 Nxe4 22. Qxe4 {½-½ (39) Darini,P (2497)-Sibashvili,G (2418) Bandar e Anzali 2018}) 16. O-O-O {[%emt 0:10:20]} (16. Qxe5 $2 Re8 17. Qxe8+ Nxe8 $19) 16... Qb6 {[%emt 0:11:38]} 17. Ra4 {[%emt 0:01:20]} h6 $132 {[%emt 0:00:30][%mdl 2048] Black puts up resistance} 18. Bd2 {[%emt 0:08:01] Black should prevent cxd5.} d4 {[%emt 0:16:06]} 19. Ne4 {[%emt 0:02:28]} c5 {[%emt 0:00:18]} 20. Nxf6 {[%emt 0:04:50]} gxf6 {[%emt 0:00:29]} 21. Qg4+ {[%emt 0:06:43]} Kb8 {[%emt 0:00:09]} 22. Ra3 {[%emt 0:01:22]} e4 {[%emt 0:05:51][%cal Of6f5] Against Bd3} 23. Rb3 {[%emt 0:00:54]} Qc6 {[%emt 0:00:13][%cal Of6f5]} 24. f3 {[%emt 0:00:57]} Re8 {[%emt 0:07:25] Strongly threatening ...h5.} 25. fxe4 {[%emt 0:00:19]} Bd6 {[%emt 0:10:20]} 26. Be2 {[%emt 0:07:48]} Be5 {[%emt 0:03:00]} (26... Qxe4 $2 27. Qxe4 Rxe4 28. Bf3 $18) (26... Rxe4 $2 27. Bf3 Rhe8 28. Bxh6 $18 (28. Bxe4 Rxe4 29. Qf3 f5 $18)) 27. h5 {[%emt 0:00:40]} Reg8 {[%emt 0:01:33] [#]} 28. Qh3 {[%emt 0:00:27] 0x0.001e7f237ef4dp-1022s more active pieces.} (28. Qf3 $6 Rg3 29. Qf5 Rxg2 $11) 28... Rg7 {[%emt 0:02:10]} (28... Qxe4 $2 29. Bf3 Rg3 30. Bxe4 $18) 29. g4 {[%emt 0:01:52]} Qd6 {[%emt 0:02:11]} (29... Qxe4 $2 30. Bf3 Ka8 31. Bxe4 $18) 30. Rf1 {[%emt 0:03:51]} Ka7 {[%emt 0:00:38]} (30... Rgg8 $16 31. Rb5 d3 32. Qxd3 (32. Bxd3 Rxg4 33. Qe3 Rhg8 $11) 32... Qxd3 33. Bxd3 Rxg4) 31. Rb5 {[%emt 0:00:35]} (31. Qd3 $18) 31... Ra8 $2 {[%emt 0:00:32] Loses the game.} (31... d3 $16 32. Qxd3 (32. Bxd3 Rxg4 33. Qe3 Rg3 $11) 32... Qxd3 33. Bxd3 Rxg4) 32. Bxh6 {[%emt 0:01:10]} Rh7 {[%emt 0:00:26]} (32... d3 $142 33. Qxd3 (33. Bxg7 $2 {perishes.} dxe2 34. Bh6 Rd8 $19) 33... Qxd3 34. Bxd3 Rxg4 35. Rxc5 Rd8) 33. Bd2 $18 {[%emt 0:00:10]} c6 $2 {[%emt 0:00:26]} (33... Kb8 34. Kb1 Ra6) 34. Ra5+ {[%emt 0:01:06]} Kb8 {[%emt 0:00:01]} 35. Rxa8+ {[%emt 0:00:11]} Bxa8 36. h6 {[%emt 0:00:38]} Bb7 {[%emt 0:00:35]} 37. Rf3 {[%emt 0:00:48]} Qe6 {[%emt 0:00:55]} 38. g5 {[%emt 0:01:18]} Qxh3 {[%emt 0:00:34]} 39. Rxh3 {[%emt 0:00:01] Black must now prevent g6.} fxg5 {[%emt 0:00:08]} 40. Bxg5 {[%emt 0:01:31]} Bc8 {[%emt 0:00:22]} 41. Rb3+ {[%emt 0:00:35]} Kc7 {[%emt 0:00:11]} 42. Bh5 {[%emt 0:00:10]} Be6 {[%emt 0:00:14]} 43. Bg6 {[%emt 0:00:49]} Rh8 {[%emt 0:00:18]} 44. h7 {[%emt 0:00:34] Against Rg8} Bxc4 {[%emt 0:00:07]} 45. Ra3 {[%emt 0:00:36]} Kb6 {[%emt 0:01:47]} 46. Rf3 {[%emt 0:00:34] Against Rf8} Bxa2 {[%emt 0:00:48]} (46... Bg8 {keeps fighting.} 47. hxg8=N Rxg8) 47. Bf6 {[%emt 0:00:23]} Bxf6 {[%emt 0:00:26]} 48. Rxf6 {[%emt 0:00:01][%mdl 4096] Endgame Hoping for e5. KRB-KRB} Kc7 {[%emt 0:00:58]} (48... Bg8 $142 49. hxg8=N Rxg8) 49. e5 {[%emt 0:00:42][%cal Be4e5,Be5e6,Be6e7][%mdl 32]} Bd5 {[%emt 0:00:26]} 50. Bf5 {[%emt 0:00:30]} c4 {[%emt 0:00:37]} 51. Kd2 {[%emt 0:00:29]} Re8 {[%emt 0:00:41]} 52. Rh6 {[%emt 0:00:11]} Rh8 {[%emt 0:00:04]} 53. Rd6 {[%emt 0:00:13] Threatens to win with Rd7+.} Kb6 {[%emt 0:00:43]} 54. e6 {[%emt 0:00:51] Threatening mate with e7.} Kc5 {[%emt 0:00:12]} 55. Rd7 {[%emt 0:00:15] e7 is the strong threat.} Kb4 {[%emt 0:01:03]} 56. e7 {[%emt 0:00:09] White mates.} c3+ {[%emt 0:00:11]} 57. bxc3+ {[%emt 0:01:16]} dxc3+ {[%emt 0:00:01]} 58. Ke3 {[%emt 0:00:47]} Bf7 {[%emt 0:00:58]} 59. Rd8 {[%emt 0:00:15]} Be8 {[%emt 0:00:09]} 60. Rb8+ {[%emt 0:00:26]} Kc5 {[%emt 0:00:22] [#]} 61. Bg6 $1 {[%emt 0:00:31][%mdl 512]} Bxg6 {[%emt 0:00:49]} (61... c2 62. Kd2) 62. Rxh8 {[%emt 0:00:06]} c2 {[%emt 0:00:03] Weighted Error Value: White=0.09 (flawless) /Black=0.36} 1-0

[Event "French-ch Youth U18 2022"]
[Site "Agen"]
[Date "2022.04.21"]
[Round "6.4"]
[White "Mas, Victor"]
[Black "Bernard, Louis"]
[Result "1-0"]
[ECO "D34"]
[WhiteElo "2190"]
[BlackElo "2094"]
[Annotator "TA"]
[PlyCount "148"]
[EventDate "2022.04.17"]
[EventType "swiss"]
[EventCountry "FRA"]
[SourceTitle "playchess.com"]
[Source "ChessBase"]
[SourceQuality "1"]
[TimeControl "5400+30"]

{[%evp 19,148,28,37,16,45,8,8,16,28,6,20,9,0,13,20,20,10,0,12,0,0,0,0,0,34,0,0,-11,0,0,32,0,9,-20,0,0,0,0,0,0,14,9,12,-289,-284,-305,-309,-253,-118,-238,-158,-112,-83,-172,-166,-129,-105,-91,-122,-61,-10,-60,15,17,90,50,110,0,0,0,301,297,291,282,309,281,315,16,16,8,20,20,22,20,20,16,16,0,100,100,100,100,100,100,130,119,135,112,113,126,217,217,231,231,418,418,411,411,396,396,29966,29967,29975,29976,29976,29976,29976,29977,29977,29978,29978,29979,29980,29980,29979,29980,29984,29985,29992,29993,29993]} 1. d4 {[%emt 0:00:05]} d5 {[%emt 0:00:04]} 2. c4 {[%emt 0:00:05]} e6 {[%emt 0:00:04]} 3. Nf3 {[%emt 0:00:08]} c5 {[%emt 0:00:11]} 4. cxd5 {[%emt 0:05:19]} exd5 {[%emt 0:00:26]} 5. g3 {[%emt 0:00:12]} Nf6 {[%emt 0:00:22]} 6. Bg2 {[%emt 0:00:08]} Be7 {[%emt 0:01:12]} 7. O-O {[%emt 0:00:41]} O-O {[%emt 0:00:14]} 8. Nc3 {[%emt 0:01:22]} Nc6 {[%emt 0:00:18]} 9. Be3 {[%emt 0:08:49] 9.dxc5 is setting a new trend.} c4 {[%emt 0:02:42]} 10. Ne5 {[%emt 0:06:12]} h6 {[%emt 0:18:25]} 11. Qa4 {[%emt 0:03:52] D34: Tarrasch Defence: 6 g3 Nf6 7 Bg2 Be7.} (11. b3) 11... Bd7 {[%emt 0:06:13] Strongly threatening ...Nxe5.} 12. Nxd7 {[%emt 0:00:32]} (12. Qc2 $5 {[%cal Rc3d5]}) 12... Qxd7 {[%emt 0:00:18]} 13. b3 {[%emt 0:12:53] The position is equal.} cxb3 {[%emt 0:04:19]} 14. Qxb3 {[%emt 0:03:20]} Rfd8 {[%emt 0:06:57]} 15. Rab1 {[%emt 0:08:57]} b6 {[%emt 0:00:28]} 16. Rfc1 {[%emt 0:04:42][%cal Oc3d5] [#]} Na5 $146 {[%emt 0:11:56]} ({Predecessor:} 16... Rac8 17. Qa4 Bf8 18. Bd2 Qg4 19. e3 Na5 20. Nb5 Nc4 21. Bb4 Bxb4 22. Qxb4 a5 {1-0 (37) Coutton,S (2155)-De Lagontrie,J (2065) Cannes 1996}) 17. Qb5 {[%emt 0:01:18]} Qe6 {[%emt 0:01:14]} 18. Bf4 {[%emt 0:03:28]} Ba3 {[%emt 0:24:00]} 19. Re1 {[%emt 0:02:26]} Rac8 {[%emt 0:00:43]} 20. Qd3 {[%emt 0:00:24]} Bd6 {[%emt 0:03:53]} 21. Bc1 {[%emt 0:02:27]} Bb8 {[%emt 0:01:49]} 22. Nd1 {[%emt 0:03:06]} Nc4 {[%emt 0:03:29]} 23. Ne3 {[%emt 0:02:38]} a6 {[%emt 0:02:53]} 24. a4 {[%emt 0:04:35]} Qd7 {[%emt 0:00:03]} 25. Qb3 {[%emt 0:00:29]} Ba7 {[%emt 0:01:14]} 26. h4 {[%emt 0:01:13]} Nxe3 {[%emt 0:02:09]} 27. Bxe3 {[%emt 0:00:27]} Rc4 {[%emt 0:00:03]} 28. Ra1 {[%emt 0:00:38]} Rdc8 {[%emt 0:01:16]} 29. Reb1 {[%emt 0:01:35]} Ne4 {[%emt 0:01:33]} 30. Bxe4 {[%emt 0:01:59]} dxe4 {[%emt 0:00:01]} 31. d5 $2 {[%emt 0:00:08][%mdl 8192]} (31. Kg2 $11) 31... Rc3 $1 $19 {[%emt 0:02:43]} ({Inferior is} 31... Qxd5 32. Rd1 Qb7 33. Rd4 Rxd4 34. Bxd4 $11) 32. Qd1 {[%emt 0:00:09] [#]} Rxe3 $1 {[%emt 0:00:46][%mdl 512]} 33. fxe3 {[%emt 0:00:02]} Qh3 {[%emt 0:00:26]} (33... Qg4 $1 $19 {[%cal Rg4g3] and Black stays clearly on top.} 34. Qf1 Rc2) 34. Qe1 {[%emt 0:01:08]} (34. Qf1 $17 {was the only chance.} Qxg3+ 35. Qg2 Qxh4 36. d6) 34... b5 {[%emt 0:00:32]} 35. Rb3 {[%emt 0:00:00]} b4 {[%emt 0:01:43] Hoping for ...a5.} 36. a5 {[%emt 0:01:52]} (36. Qf2 $17 {was worth a try.} a5 37. Qf4) 36... Bb8 {[%emt 0:00:29]} 37. Qf2 {[%emt 0:01:03]} Bxg3 {[%emt 0:00:30]} 38. Qg2 {[%emt 0:00:01]} Qxh4 {[%emt 0:00:09]} 39. Rxb4 {[%emt 0:00:22]} f5 {[%emt 0:00:57]} (39... Re8 $15 40. Raa4 Re5 41. Rxe4 Bh2+ $1 42. Qxh2 Rg5+ 43. Rg4 Rxg4+ 44. Rxg4 Qxg4+ 45. Qg2 Qxg2+ 46. Kxg2 f6) 40. Rd1 {[%emt 0:01:38]} (40. Rb6 $1 $11) 40... Bc7 {[%emt 0:01:03]} (40... Rc2 $1 $15) 41. Rb7 $36 {[%emt 0:01:13][%mdl 2048] d6 is the strong threat. White fights for an advantage.} g5 {[%emt 0:00:55]} (41... Bg3 $1 $11 {remains equal.}) 42. Rdb1 {[%emt 0:03:20]} Bxa5 {[%emt 0:01:05]} (42... h5 $14) 43. d6 {[%emt 0:03:41]} (43. Qh2 $16) 43... Bd2 {[%emt 0:00:11]} 44. Qf2 {[%emt 0:01:42]} Qg4+ {[%emt 0:01:01][%mdl 8192]} (44... Qh3 $1 $11 {and Black has nothing to worry.} 45. d7 Rd8) 45. Kh1 $18 {[%emt 0:00:52] aiming for Qh2. The board is on fire.} Qh3+ {[%emt 0:00:58]} 46. Qh2 {[%emt 0:00:59]} Qxh2+ 47. Kxh2 {[%emt 0:00:04] Black must now prevent d7.} Bxe3 {[%emt 0:00:07][%mdl 4096] Endgame KRR-KRB} 48. d7 $2 {[%emt 0:01:27]} (48. Rb8 $18 Bf4+ 49. Kg1) 48... Rd8 $11 {[%emt 0:00:06]} 49. Ra1 {[%emt 0:01:53]} Bf4+ {[%emt 0:00:54]} 50. Kg2 {[%emt 0:00:16]} Kf7 {[%emt 0:00:20]} 51. Rxa6 {[%emt 0:00:01]} h5 {[%emt 0:01:11]} 52. Rh6 {[%emt 0:04:39][%cal Oh6h8][%mdl 1024] Threatens to win with Rh8! White has compensation.} h4 {[%emt 0:00:11]} 53. Ra7 {[%emt 0:02:16][%cal Oh6h8]} Ke7 {[%emt 0:01:17]} (53... Kg7 $11 {keeps the balance.} 54. Raa6 Rxd7) 54. Rh7+ $16 {[%emt 0:00:43]} Kd6 {[%emt 0:00:01]} 55. Ra6+ $1 {[%emt 0:00:40]} Kc7 {[%emt 0:00:29] [#]} 56. Rf7 $1 {[%emt 0:00:01] White is more active.} Be3 {[%emt 0:00:33]} 57. Rxf5 {[%emt 0:01:21]} Rxd7 {[%emt 0:00:32]} 58. Re6 {[%emt 0:00:45]} Bf4 {[%emt 0:01:14]} 59. Rxe4 {[%emt 0:00:12]} Rg7 {[%emt 0:00:32]} (59... Kc6 $16 {was necessary.} 60. Re6+ Rd6 61. Rxd6+ Kxd6) 60. Kh3 $18 {[%emt 0:01:08]} Kd6 {[%emt 0:00:31]} 61. Kg4 {[%emt 0:01:41]} Re7 $2 {[%emt 0:00:13]} (61... Rh7 62. Ra4 (62. e3 h3 $16) 62... Kc6) 62. Rf6+ {[%emt 0:01:16]} Kd7 {[%emt 0:00:01]} 63. Rxe7+ {[%emt 0:00:47]} Kxe7 {[%emt 0:00:01] KR-KB} 64. Ra6 {[%emt 0:00:24]} Bd6 $2 {[%emt 0:01:35]} (64... Kf7 $18 65. Rh6 Kg7) 65. Kxg5 {[%emt 0:00:35] White mates.} h3 {[%emt 0:00:05] [#]} 66. Kf5 $1 {[%emt 0:00:23]} Kd7 {[%emt 0:00:56]} 67. Ra7+ {[%emt 0:00:25]} Bc7 {[%emt 0:00:21]} 68. Ra3 {[%emt 0:00:41]} h2 {[%emt 0:00:38]} 69. Rh3 {[%emt 0:00:02]} Kc6 {[%emt 0:00:37]} 70. e4 {[%emt 0:00:30][%cal Be2e4,Be4e5,Be5e6][%mdl 32]} Bg3 {[%emt 0:00:15]} 71. e5 {[%emt 0:00:33]} Kd5 {[%emt 0:00:44]} 72. e6 {[%emt 0:00:12]} Kd6 {[%emt 0:00:29]} 73. Kf6 {[%emt 0:00:07]} Bh4+ {[%emt 0:00:38]} 74. Rxh4 {[%emt 0:00:08]} Kd5 {Both players deserved the win here.  Weighted Error Value: White=0.37/Black=0.33} 1-0

[Event "French-ch Youth U18 2022"]
[Site "Agen"]
[Date "2022.04.21"]
[Round "6.5"]
[White "Tomasi, Elise"]
[Black "Blanquet, Camille"]
[Result "1/2-1/2"]
[ECO "B53"]
[WhiteElo "1988"]
[BlackElo "1928"]
[Annotator "TA"]
[PlyCount "74"]
[EventDate "2022.04.17"]
[EventType "swiss"]
[EventCountry "FRA"]
[SourceTitle "playchess.com"]
[Source "ChessBase"]
[SourceQuality "1"]
[TimeControl "5400+30"]

{[%evp 21,74,86,81,69,73,70,80,90,95,100,96,100,97,60,90,33,103,0,0,0,0,0,0,0,0,0,81,77,113,75,119,20,14,0,8,0,0,0,70,38,77,56,60,0,0,0,72,22,47,0,0,0,0,0,0]} 1. e4 {[%emt 0:00:09]} c5 {[%emt 0:00:26]} 2. Nf3 {[%emt 0:00:27]} d6 {[%emt 0:00:31]} 3. d4 {[%emt 0:00:37]} cxd4 {[%emt 0:00:13]} 4. Qxd4 {[%emt 0:00:30]} Nc6 {[%emt 0:00:23]} 5. Bb5 {[%emt 0:01:20]} Bd7 {[%emt 0:00:44]} 6. Bxc6 {[%emt 0:00:34]} Bxc6 {[%emt 0:01:39]} 7. Nc3 {[%emt 0:00:58]} Nf6 {[%emt 0:08:07]} 8. Bg5 {[%emt 0:02:46]} e5 {[%emt 0:12:36]} 9. Qd3 {[%emt 0:11:10]} Be7 {[%emt 0:06:16]} 10. O-O-O {[%emt 0:25:35]} O-O {[%emt 0:04:25]} 11. Bxf6 {[%emt 0:11:58]} Bxf6 {[%emt 0:02:26]} 12. Qxd6 {[%emt 0:06:03] B53: Sicilian: 2...d6: Lines with Qxd4.} Qa5 {[%emt 0:03:02]} 13. a3 {[%emt 0:05:00]} Rac8 {[%emt 0:09:09]} 14. Qb4 {[%emt 0:05:47] White is better.} Qc7 {[%emt 0:00:38][%cal Ob7b5] [#]} 15. Qb3 $146 {[%emt 0:00:55] Inhibits b5. White is more active.} ({Predecessor:} 15. Qd6 Qxd6 16. Rxd6 Be7 17. Rd3 f6 18. Nd2 Kf7 19. f3 Ke6 20. Rd1 Rfd8 21. Nf1 Rxd3 22. Rxd3 {½-½ (51) Dzhangirov,D-Iljin,T (2266) Kiev 2004}) 15... Rfd8 {[%emt 0:07:19]} 16. Rxd8+ {[%emt 0:01:42]} Rxd8 {[%emt 0:00:46]} 17. g4 {[%emt 0:03:27]} (17. h3 {is interesting.} Be7 18. Qc4 Qd6 19. Rd1) 17... Qe7 {[%emt 0:12:20][%cal Ob7b5]} 18. h4 {[%emt 0:02:51]} ({White should try} 18. Qc4 $16) 18... h6 {[%emt 0:02:59]} (18... Qc5 $14) 19. Qb4 {[%emt 0:03:15]} (19. Qc4 $16) 19... Qe6 $1 $11 {[%emt 0:03:41]} 20. Rg1 {[%emt 0:01:03]} Be7 {[%emt 0:01:23]} 21. Qa5 {[%emt 0:05:29][%csl LRa7,LRe5]} Qf6 $1 {[%emt 0:02:36]} 22. Qxe5 {[%emt 0:02:13]} Qxf3 {[%emt 0:03:29]} 23. Qxe7 {[%emt 0:00:07]} Re8 {[%emt 0:00:47]} ({Don't do} 23... Rd4 24. Qc7 $11) (23... Qf4+ $11 24. Kb1 Rd2) 24. Qc5 $16 {[%emt 0:00:22]} Bxe4 {[%emt 0:02:52]} 25. Nxe4 {[%emt 0:00:38]} Qxe4 {[%emt 0:00:20][%mdl 4096] Endgame KQR-KQR} 26. Kb1 {[%emt 0:01:54]} (26. Qxa7 $16 Qf3 27. Qd4) 26... b6 $11 {[%emt 0:01:57]} 27. Qc7 {[%emt 0:02:36]} (27. Qd6 {with more complications.} Qf3 28. Qd7 Re2 29. Rg3) 27... Qd4 {[%emt 0:01:27]} 28. Qg3 {[%emt 0:01:11]} Re2 {[%emt 0:01:36]} 29. f3 {[%emt 0:02:04]} Qc5 {[%emt 0:00:56]} ({Better is} 29... Qf2 $11 30. Qb8+ Kh7) 30. Rc1 {[%emt 0:00:37] Hoping for Qb8+.} a5 {[%emt 0:00:56]} 31. g5 {Black must now prevent gxh6.} Qe3 {[%emt 0:02:15]} 32. g6 {[%emt 0:01:22]} (32. gxh6 $14 Qxh6 33. Re1) 32... fxg6 {[%emt 0:00:52]} 33. Qxg6 {[%emt 0:00:23]} Qe6 {[%emt 0:00:08]} (33... Re1 $11 {remains equal.} 34. Rxe1 Qxe1+ 35. Ka2 Qxh4) 34. Qg3 {[%emt 0:00:55]} (34. Qxe6+ $16 Rxe6 35. c4) 34... Qc6 {[%emt 0:01:57]} 35. Qb8+ {[%emt 0:00:15]} (35. f4 $14 {deserves consideration.}) 35... Re8 {[%emt 0:01:01] The position is equal.} 36. Qa7 {[%emt 0:00:31]} Ra8 {[%emt 0:01:23]} 37. Qe7 {[%emt 0:00:22] [#] aiming for Rg1.} Re8 {[%emt 0:00:04] Weighted Error Value: White=0.25 (precise) /Black=0.21 (precise)} 1/2-1/2